[Event "*** Titled Tuesday Blitz"]
[Site "Chess.com"]
[Date "2019.01.01"]
[Round "5"]
[White "KenanGarayev"]
[Black "Paralinch"]
[Result "1/2-1/2"]
[WhiteElo "2848"]
[BlackElo "2912"]
[TimeControl "180+2"]
[EndTime "14:09:28 PST"]
[Termination "Game drawn by repetition"]

1. d4 {[%clk 0:03:01.9]} 1... d5 {[%clk 0:03:00.8]} 2. c4 {[%clk 0:03:01.2]}
2... dxc4 {[%clk 0:03:02.7]} 3. Nf3 {[%clk 0:03:01.1]} 3... a6 {[%clk 0:03:03]}
4. e3 {[%clk 0:02:57.3]} 4... Bg4 {[%clk 0:03:03.1]} 5. Bxc4 {[%clk 0:02:55.4]}
5... e6 {[%clk 0:03:04.7]} 6. h3 {[%clk 0:02:54.5]} 6... Bh5 {[%clk 0:03:05]} 7.
O-O {[%clk 0:02:55.5]} 7... Nf6 {[%clk 0:03:04.8]} 8. Be2 {[%clk 0:02:53.9]}
8... Nc6 {[%clk 0:03:01.8]} 9. b3 {[%clk 0:02:50.8]} 9... Bd6 {[%clk 0:03:01.9]}
10. Nbd2 {[%clk 0:02:47]} 10... O-O {[%clk 0:03:01.6]} 11. Bb2 {[%clk
0:02:48.3]} 11... Re8 {[%clk 0:02:56.6]} 12. Nc4 {[%clk 0:02:38.3]} 12... Bf8
{[%clk 0:02:52.5]} 13. Nfe5 {[%clk 0:02:28.9]} 13... Bxe2 {[%clk 0:02:50.1]} 14.
Qxe2 {[%clk 0:02:30.8]} 14... Nxe5 {[%clk 0:02:51.5]} 15. Nxe5 {[%clk
0:02:20.5]} 15... Nd7 {[%clk 0:02:51.2]} 16. Nxd7 {[%clk 0:02:16.7]} 16... Qxd7
{[%clk 0:02:53.1]} 17. Rad1 {[%clk 0:02:15.3]} 17... a5 {[%clk 0:02:52.6]} 18.
a4 {[%clk 0:02:08.4]} 18... c6 {[%clk 0:02:51.2]} 19. e4 {[%clk 0:02:05.8]}
19... b5 {[%clk 0:02:49.5]} 20. f4 {[%clk 0:02:02.5]} 20... bxa4 {[%clk
0:02:44.7]} 21. bxa4 {[%clk 0:02:00.3]} 21... c5 {[%clk 0:02:46.1]} 22. dxc5
{[%clk 0:01:54]} 22... Qxa4 {[%clk 0:02:40.6]} 23. Qe3 {[%clk 0:01:46.3]} 23...
Qc6 {[%clk 0:02:29.9]} 24. Rc1 {[%clk 0:01:42.7]} 24... a4 {[%clk 0:02:29.4]}
25. Ba3 {[%clk 0:01:40.9]} 25... Rab8 {[%clk 0:02:26.3]} 26. Rfd1 {[%clk
0:01:41.3]} 26... Rb3 {[%clk 0:02:24.6]} 27. Rd3 {[%clk 0:01:41.5]} 27... Reb8
{[%clk 0:02:24.4]} 28. Kh2 {[%clk 0:01:39.3]} 28... Rxd3 {[%clk 0:02:12.9]} 29.
Qxd3 {[%clk 0:01:41.2]} 29... Rb3 {[%clk 0:02:14]} 30. Rc3 {[%clk 0:01:39.5]}
30... Rxc3 {[%clk 0:02:13.5]} 31. Qxc3 {[%clk 0:01:41.4]} 31... Qxe4 {[%clk
0:02:13.3]} 32. c6 {[%clk 0:01:40.9]} 32... Qxf4+ {[%clk 0:02:03.9]} 33. g3
{[%clk 0:01:38.7]} 33... Qc7 {[%clk 0:01:13.9]} 34. Bxf8 {[%clk 0:01:25.8]}
34... Kxf8 {[%clk 0:01:15.8]} 35. Qb4+ {[%clk 0:01:27.4]} 35... Ke8 {[%clk
0:01:16.8]} 36. Qxa4 {[%clk 0:01:29.3]} 36... e5 {[%clk 0:01:13]} 37. Qa8+
{[%clk 0:01:23.9]} 37... Ke7 {[%clk 0:01:13.6]} 38. Qa3+ {[%clk 0:01:24.3]}
38... Ke6 {[%clk 0:01:13.4]} 39. Qc5 {[%clk 0:01:23]} 39... h5 {[%clk
0:01:12.2]} 40. Kg2 {[%clk 0:01:20.7]} 40... f5 {[%clk 0:01:11.5]} 41. h4 {[%clk
0:01:19.6]} 41... g6 {[%clk 0:01:09.7]} 42. Kh2 {[%clk 0:01:19]} 42... e4 {[%clk
0:01:08.1]} 43. Kg2 {[%clk 0:01:19.9]} 43... Kf6 {[%clk 0:00:54.1]} 44. Kf2
{[%clk 0:01:17.9]} 44... Ke6 {[%clk 0:00:48.9]} 45. Kg2 {[%clk 0:01:19.2]} 45...
Kf6 {[%clk 0:00:49]} 46. Kf2 {[%clk 0:01:18.9]} 46... Ke6 {[%clk 0:00:50.1]} 47.
Kg2 {[%clk 0:01:19.5]} 47... Kf6 {[%clk 0:00:51.4]} 48. Kf2 {[%clk 0:01:20.7]}
48... Ke6 {[%clk 0:00:52.7]} 1/2-1/2

[Event "*** Titled Tuesday Blitz"]
[Site "Chess.com"]
[Date "2019.01.01"]
[Round "5"]
[White "michaelq2d5"]
[Black "idvidal"]
[Result "1-0"]
[WhiteElo "2744"]
[BlackElo "2476"]
[TimeControl "180+2"]
[EndTime "14:09:29 PST"]
[Termination "michaelq2d5 won by checkmate"]

1. d4 {[%clk 0:03:01.9]} 1... Nf6 {[%clk 0:02:51.3]} 2. c4 {[%clk 0:03:02.4]}
2... e6 {[%clk 0:02:52.2]} 3. Nc3 {[%clk 0:03:02.2]} 3... Bb4 {[%clk 0:02:52.9]}
4. Qc2 {[%clk 0:03:03.4]} 4... O-O {[%clk 0:02:49.3]} 5. Nf3 {[%clk 0:03:04.4]}
5... d5 {[%clk 0:02:46.9]} 6. cxd5 {[%clk 0:03:01.2]} 6... exd5 {[%clk
0:02:48.8]} 7. Bf4 {[%clk 0:03:02.2]} 7... c5 {[%clk 0:02:26.4]} 8. dxc5 {[%clk
0:03:01.9]} 8... Ne4 {[%clk 0:02:20]} 9. Bd2 {[%clk 0:02:43.1]} 9... Nxd2 {[%clk
0:02:12.5]} 10. Qxd2 {[%clk 0:02:44.2]} 10... Nc6 {[%clk 0:02:09.4]} 11. e3
{[%clk 0:02:44.8]} 11... Bg4 {[%clk 0:01:24.4]} 12. O-O-O {[%clk 0:02:45]} 12...
Qa5 {[%clk 0:00:48.8]} 13. a3 {[%clk 0:02:33.4]} 13... Bxc3 {[%clk 0:00:48.7]}
14. Qxc3 {[%clk 0:02:34.5]} 14... Qxc3+ {[%clk 0:00:49.5]} 15. bxc3 {[%clk
0:02:36.4]} 15... Rac8 {[%clk 0:00:43.4]} 16. Rxd5 {[%clk 0:02:36.3]} 16... Be6
{[%clk 0:00:39.7]} 17. Rd1 {[%clk 0:02:32]} 17... Na5 {[%clk 0:00:40.6]} 18. Nd4
{[%clk 0:02:32.3]} 18... Rxc5 {[%clk 0:00:20.1]} 19. Kb2 {[%clk 0:02:32.6]}
19... Bc4 {[%clk 0:00:17.7]} 20. Bd3 {[%clk 0:02:29.7]} 20... Rfc8 {[%clk
0:00:17]} 21. Rd2 {[%clk 0:02:12.7]} 21... Bd5 {[%clk 0:00:16.4]} 22. e4 {[%clk
0:02:12.6]} 22... Bxe4 {[%clk 0:00:16.2]} 23. Bxe4 {[%clk 0:02:08.7]} 23... Nc4+
{[%clk 0:00:16.3]} 24. Kc2 {[%clk 0:02:10.4]} 24... Nxd2 {[%clk 0:00:15]} 25.
Kxd2 {[%clk 0:02:12.3]} 25... Rxc3 {[%clk 0:00:16.3]} 26. Bxb7 {[%clk
0:02:03.2]} 26... R8c5 {[%clk 0:00:11.5]} 27. Re1 {[%clk 0:01:55.1]} 27... g6
{[%clk 0:00:12.7]} 28. Re8+ {[%clk 0:01:32.9]} 28... Kg7 {[%clk 0:00:13.6]} 29.
Re7 {[%clk 0:01:34.3]} 29... Kf6 {[%clk 0:00:12.5]} 30. Rd7 {[%clk 0:01:34.9]}
30... Rxa3 {[%clk 0:00:11.2]} 31. Bd5 {[%clk 0:01:32.5]} 31... Kg5 {[%clk
0:00:05]} 32. Nf3+ {[%clk 0:01:28.4]} 32... Kh6 {[%clk 0:00:05.7]} 33. Bxf7
{[%clk 0:01:26.1]} 33... Rb5 {[%clk 0:00:06.4]} 34. Bg8 {[%clk 0:01:24.7]} 34...
Kh5 {[%clk 0:00:04.7]} 35. Rxh7+ {[%clk 0:01:10.3]} 35... Kg4 {[%clk 0:00:05.7]}
36. Be6+ {[%clk 0:01:10.3]} 36... Kf4 {[%clk 0:00:05.3]} 37. Rh4# {[%clk
0:01:12]} 1-0

[Event "*** Titled Tuesday Blitz"]
[Site "Chess.com"]
[Date "2019.01.01"]
[Round "5"]
[White "WorldChampionBulletChess"]
[Black "j2806"]
[Result "1-0"]
[WhiteElo "2096"]
[BlackElo "1734"]
[TimeControl "180+2"]
[EndTime "14:09:29 PST"]
[Termination "WorldChampionBulletChess won on time"]

1. Nc3 {[%clk 0:02:58.2]} 1... Nf6 {[%clk 0:02:59.8]} 2. e4 {[%clk 0:02:57.1]}
2... e5 {[%clk 0:02:55.4]} 3. Nf3 {[%clk 0:02:58.3]} 3... Nc6 {[%clk 0:02:51.6]}
4. Bc4 {[%clk 0:02:59.1]} 4... Be7 {[%clk 0:02:42.1]} 5. O-O {[%clk 0:02:59.1]}
5... O-O {[%clk 0:02:42.6]} 6. d4 {[%clk 0:02:57.7]} 6... exd4 {[%clk
0:02:40.4]} 7. Nxd4 {[%clk 0:02:59.6]} 7... Nxd4 {[%clk 0:02:37]} 8. Qxd4 {[%clk
0:03:01.5]} 8... d6 {[%clk 0:02:36.2]} 9. Bg5 {[%clk 0:02:53.2]} 9... b6 {[%clk
0:02:10.3]} 10. Rad1 {[%clk 0:02:45.9]} 10... Bb7 {[%clk 0:01:56.6]} 11. Rfe1
{[%clk 0:02:41.4]} 11... Re8 {[%clk 0:01:52.7]} 12. h3 {[%clk 0:02:24.8]} 12...
h6 {[%clk 0:01:45.2]} 13. Bh4 {[%clk 0:02:25.6]} 13... Nd7 {[%clk 0:01:40.9]}
14. Bxe7 {[%clk 0:02:19.4]} 14... Qxe7 {[%clk 0:01:34.8]} 15. Nd5 {[%clk
0:02:21.3]} 15... Qd8 {[%clk 0:01:23]} 16. Re3 {[%clk 0:01:53]} 16... Ne5 {[%clk
0:01:18.8]} 17. Rg3 {[%clk 0:01:50.9]} 17... Kh8 {[%clk 0:01:04.7]} 18. Be2
{[%clk 0:01:45.9]} 18... Ng6 {[%clk 0:00:47]} 19. Bh5 {[%clk 0:01:41.2]} 19...
Bxd5 {[%clk 0:00:25.2]} 20. Qxd5 {[%clk 0:01:41.3]} 20... Qf6 {[%clk 0:00:23.4]}
21. Rf3 {[%clk 0:01:38.7]} 21... Qe5 {[%clk 0:00:15]} 22. Qxf7 {[%clk
0:01:33.7]} 22... Qxh5 {[%clk 0:00:14.9]} 23. g4 {[%clk 0:01:23]} 23... Qg5
{[%clk 0:00:11.4]} 24. Rd5 {[%clk 0:01:22]} 24... Ne5 {[%clk 0:00:05.7]} 25.
Rxe5 {[%clk 0:00:53]} 25... Qxe5 {[%clk 0:00:05.7]} 26. Qxc7 {[%clk 0:00:54.9]}
26... Qxe4 {[%clk 0:00:05.7]} 27. Rf7 {[%clk 0:00:54.2]} 27... Rg8 {[%clk
0:00:05.8]} 28. Qxd6 {[%clk 0:00:54.1]} 28... Rae8 {[%clk 0:00:02.4]} 29. Qg3
{[%clk 0:00:48.4]} 29... Qxc2 {[%clk 0:00:03.2]} 30. g5 {[%clk 0:00:46.9]} 30...
Re1+ {[%clk 0:00:04.2]} 31. Kg2 {[%clk 0:00:46.8]} 31... hxg5 {[%clk 0:00:05]}
32. Qxg5 {[%clk 0:00:48.7]} 1-0

[Event "*** Titled Tuesday Blitz"]
[Site "Chess.com"]
[Date "2019.01.01"]
[Round "5"]
[White "IMAghasiyevKamal"]
[Black "albi1999"]
[Result "1-0"]
[WhiteElo "2539"]
[BlackElo "2461"]
[TimeControl "180+2"]
[EndTime "14:09:32 PST"]
[Termination "IMAghasiyevKamal won by resignation"]

1. e4 {[%clk 0:03:00.5]} 1... e5 {[%clk 0:03:00.7]} 2. Nf3 {[%clk 0:02:59]} 2...
Nc6 {[%clk 0:03:02]} 3. Bb5 {[%clk 0:02:58.6]} 3... Nf6 {[%clk 0:03:02.3]} 4.
O-O {[%clk 0:02:58.6]} 4... Nxe4 {[%clk 0:03:03.8]} 5. d4 {[%clk 0:02:58.8]}
5... Nd6 {[%clk 0:03:04.8]} 6. Bxc6 {[%clk 0:03:00]} 6... dxc6 {[%clk
0:03:06.7]} 7. dxe5 {[%clk 0:03:00.9]} 7... Nf5 {[%clk 0:03:08.3]} 8. Qxd8+
{[%clk 0:03:00.8]} 8... Kxd8 {[%clk 0:03:10.2]} 9. Rd1+ {[%clk 0:02:57]} 9...
Ke8 {[%clk 0:03:11.2]} 10. Nc3 {[%clk 0:02:57.6]} 10... Be7 {[%clk 0:03:10.7]}
11. h3 {[%clk 0:02:56.1]} 11... h5 {[%clk 0:03:11.6]} 12. Bg5 {[%clk 0:02:54.3]}
12... Be6 {[%clk 0:03:12.6]} 13. Rd2 {[%clk 0:02:46.6]} 13... Rd8 {[%clk
0:03:01.8]} 14. Rad1 {[%clk 0:02:42.8]} 14... Rxd2 {[%clk 0:03:02.3]} 15. Rxd2
{[%clk 0:02:43.7]} 15... f6 {[%clk 0:02:55.3]} 16. exf6 {[%clk 0:02:38.2]} 16...
gxf6 {[%clk 0:02:57.2]} 17. Bf4 {[%clk 0:02:33.1]} 17... Bd6 {[%clk 0:02:57.1]}
18. Ne2 {[%clk 0:02:21.2]} 18... Kf7 {[%clk 0:02:32.4]} 19. b3 {[%clk
0:02:13.4]} 19... Bd5 {[%clk 0:02:28.5]} 20. Bxd6 {[%clk 0:02:07.8]} 20... cxd6
{[%clk 0:02:23.3]} 21. Nfd4 {[%clk 0:01:58.6]} 21... Ne7 {[%clk 0:01:51.1]} 22.
c4 {[%clk 0:01:52.9]} 22... Be4 {[%clk 0:01:49.9]} 23. f3 {[%clk 0:01:50.2]}
23... Bf5 {[%clk 0:01:24.6]} 24. h4 {[%clk 0:01:48.4]} 24... c5 {[%clk
0:01:01.2]} 25. Nb5 {[%clk 0:01:45.7]} 25... Rd8 {[%clk 0:00:53.3]} 26. Rxd6
{[%clk 0:01:41.9]} 26... Re8 {[%clk 0:00:44.2]} 27. Rd2 {[%clk 0:01:36.5]} 27...
Nc8 {[%clk 0:00:44.1]} 28. Kf2 {[%clk 0:01:35.4]} 28... a6 {[%clk 0:00:42.5]}
29. Nc7 {[%clk 0:01:35.6]} 29... Re7 {[%clk 0:00:37.9]} 30. Nd5 {[%clk
0:01:32.7]} 30... Rd7 {[%clk 0:00:39.3]} 31. Ng3 {[%clk 0:01:26]} 31... Bg6
{[%clk 0:00:36.9]} 32. Ke1 {[%clk 0:01:12.5]} 32... b5 {[%clk 0:00:33.9]} 33.
Nf4 {[%clk 0:01:11.3]} 33... Rxd2 {[%clk 0:00:23.3]} 34. Kxd2 {[%clk 0:01:11.7]}
34... Bb1 {[%clk 0:00:25.2]} 35. Kc1 {[%clk 0:01:10.5]} 35... Bxa2 {[%clk
0:00:20.9]} 36. Kb2 {[%clk 0:01:11.1]} 36... b4 {[%clk 0:00:22.2]} 37. Kxa2
{[%clk 0:01:11.6]} 37... Ne7 {[%clk 0:00:21.5]} 38. Ngxh5 {[%clk 0:01:10.1]}
38... Nc6 {[%clk 0:00:22.7]} 39. Nd3 {[%clk 0:01:07]} 1-0

[Event "*** Titled Tuesday Blitz"]
[Site "Chess.com"]
[Date "2019.01.01"]
[Round "5"]
[White "Slovak_fighter2000"]
[Black "pedroholly22"]
[Result "1-0"]
[WhiteElo "2446"]
[BlackElo "2237"]
[TimeControl "180+2"]
[EndTime "14:09:46 PST"]
[Termination "Slovak_fighter2000 won by resignation"]

1. Nf3 {[%clk 0:03:01.9]} 1... Nf6 {[%clk 0:02:49.7]} 2. c4 {[%clk 0:03:02.4]}
2... e6 {[%clk 0:02:49.3]} 3. d4 {[%clk 0:03:02.8]} 3... Bb4+ {[%clk 0:02:49]}
4. Nbd2 {[%clk 0:03:03.3]} 4... O-O {[%clk 0:02:49]} 5. g3 {[%clk 0:03:03.5]}
5... b6 {[%clk 0:02:44.2]} 6. Bg2 {[%clk 0:03:04.8]} 6... Bb7 {[%clk 0:02:38]}
7. O-O {[%clk 0:03:06.1]} 7... Nc6 {[%clk 0:02:20.3]} 8. a3 {[%clk 0:03:04.5]}
8... Be7 {[%clk 0:02:16.6]} 9. e4 {[%clk 0:03:01.2]} 9... d6 {[%clk 0:02:17.6]}
10. Qc2 {[%clk 0:02:57.3]} 10... e5 {[%clk 0:02:18.4]} 11. d5 {[%clk 0:02:57.1]}
11... Nb8 {[%clk 0:02:16.7]} 12. b4 {[%clk 0:02:56.2]} 12... c6 {[%clk
0:02:12.8]} 13. Bb2 {[%clk 0:02:51.8]} 13... cxd5 {[%clk 0:02:13.3]} 14. cxd5
{[%clk 0:02:53.7]} 14... a5 {[%clk 0:02:10.2]} 15. Rfc1 {[%clk 0:02:49.6]} 15...
Na6 {[%clk 0:02:08.5]} 16. Qb3 {[%clk 0:02:45.3]} 16... axb4 {[%clk 0:02:03.8]}
17. axb4 {[%clk 0:02:45.8]} 17... Rc8 {[%clk 0:02:04.9]} 18. Bf1 {[%clk
0:02:45.8]} 18... Nb8 {[%clk 0:01:57.3]} 19. Rxc8 {[%clk 0:02:44]} 19... Bxc8
{[%clk 0:01:53.4]} 20. Ra7 {[%clk 0:02:39.3]} 20... Bg4 {[%clk 0:01:51.4]} 21.
h3 {[%clk 0:02:34.9]} 21... Bxf3 {[%clk 0:01:48.2]} 22. Qxf3 {[%clk 0:02:36.8]}
22... Nbd7 {[%clk 0:01:45.4]} 23. Qc3 {[%clk 0:02:33]} 23... Qb8 {[%clk
0:01:45.1]} 24. Qc7 {[%clk 0:02:32]} 24... Rc8 {[%clk 0:01:17.6]} 25. Qxb8
{[%clk 0:02:30.9]} 25... Nxb8 {[%clk 0:01:19.5]} 26. Rxe7 {[%clk 0:02:30]} 26...
Rc2 {[%clk 0:01:15.7]} 27. Nc4 {[%clk 0:02:30.6]} 27... b5 {[%clk 0:01:11.5]}
28. Nxd6 {[%clk 0:02:21.1]} 28... Rxb2 {[%clk 0:01:08.2]} 29. Rb7 {[%clk
0:02:10.7]} 29... Nbd7 {[%clk 0:01:04.6]} 30. Bxb5 {[%clk 0:02:11.3]} 30... Nf8
{[%clk 0:01:04.1]} 31. Bc6 {[%clk 0:02:07.6]} 31... g5 {[%clk 0:00:44.9]} 32.
Nxf7 {[%clk 0:02:04.5]} 32... Nxe4 {[%clk 0:00:39.8]} 33. d6 {[%clk 0:01:55]}
33... Nxf2 {[%clk 0:00:32.2]} 34. Nxg5 {[%clk 0:01:48.9]} 34... Nd3 {[%clk
0:00:23.2]} 35. d7 {[%clk 0:01:44.8]} 35... Rb1+ {[%clk 0:00:22.7]} 36. Kg2
{[%clk 0:01:45.1]} 36... Ne1+ {[%clk 0:00:23.4]} 37. Kf2 {[%clk 0:01:38.3]}
37... Nxd7 {[%clk 0:00:22.8]} 38. Bxd7 {[%clk 0:01:38.8]} 38... Nd3+ {[%clk
0:00:23.3]} 39. Ke3 {[%clk 0:01:37.9]} 39... Nxb4 {[%clk 0:00:24.2]} 40. Be6+
{[%clk 0:01:36.1]} 40... Kf8 {[%clk 0:00:25.2]} 41. Nxh7+ {[%clk 0:01:37]} 41...
Ke8 {[%clk 0:00:26]} 42. Nf6+ {[%clk 0:01:35]} 42... Kd8 {[%clk 0:00:25.8]} 43.
Rd7+ {[%clk 0:01:35.3]} 43... Kc8 {[%clk 0:00:26.9]} 44. Rd1+ {[%clk 0:01:36.6]}
44... Kc7 {[%clk 0:00:28.2]} 45. Rxb1 {[%clk 0:01:37.7]} 45... Nc2+ {[%clk
0:00:29.6]} 46. Ke4 {[%clk 0:01:38.5]} 46... Nd4 {[%clk 0:00:31.5]} 47. Kxe5
{[%clk 0:01:39.3]} 47... Nf3+ {[%clk 0:00:32.3]} 48. Kf4 {[%clk 0:01:39.8]}
48... Nh2 {[%clk 0:00:34.2]} 49. Ng4 {[%clk 0:01:38.5]} 49... Nf1 {[%clk
0:00:36.1]} 50. Rxf1 {[%clk 0:01:38.7]} 1-0

[Event "*** Titled Tuesday Blitz"]
[Site "Chess.com"]
[Date "2019.01.01"]
[Round "5"]
[White "Grieve72"]
[Black "Opening_Prep"]
[Result "1-0"]
[WhiteElo "2345"]
[BlackElo "2393"]
[TimeControl "180+2"]
[EndTime "14:09:54 PST"]
[Termination "Grieve72 won by resignation"]

1. d4 {[%clk 0:03:01.9]} 1... Nf6 {[%clk 0:02:57.9]} 2. Bg5 {[%clk 0:03:02.4]}
2... d5 {[%clk 0:02:57]} 3. Bxf6 {[%clk 0:03:03.1]} 3... exf6 {[%clk 0:02:58.9]}
4. e3 {[%clk 0:03:04.3]} 4... Bd6 {[%clk 0:02:57.3]} 5. g3 {[%clk 0:03:05.4]}
5... O-O {[%clk 0:02:57.8]} 6. Bg2 {[%clk 0:03:06.5]} 6... c6 {[%clk 0:02:58.3]}
7. Ne2 {[%clk 0:03:07.8]} 7... Nd7 {[%clk 0:02:57.3]} 8. O-O {[%clk 0:03:08.4]}
8... Re8 {[%clk 0:02:58.1]} 9. b3 {[%clk 0:03:06.9]} 9... Qe7 {[%clk 0:02:36.1]}
10. c4 {[%clk 0:03:03.6]} 10... dxc4 {[%clk 0:02:37.2]} 11. bxc4 {[%clk
0:03:05.5]} 11... c5 {[%clk 0:02:38.5]} 12. Nbc3 {[%clk 0:02:58.3]} 12... Rb8
{[%clk 0:02:32.4]} 13. Qa4 {[%clk 0:02:47]} 13... cxd4 {[%clk 0:01:25.4]} 14.
exd4 {[%clk 0:02:39.8]} 14... Nb6 {[%clk 0:01:25.8]} 15. Qb3 {[%clk 0:02:03.3]}
15... Be6 {[%clk 0:01:24.7]} 16. d5 {[%clk 0:02:03.9]} 16... Bf5 {[%clk
0:01:17.3]} 17. Rfd1 {[%clk 0:01:53.8]} 17... Rbc8 {[%clk 0:01:11.2]} 18. Nd4
{[%clk 0:01:47.9]} 18... Bd7 {[%clk 0:01:05.5]} 19. Bf1 {[%clk 0:01:45.4]} 19...
f5 {[%clk 0:00:48]} 20. a4 {[%clk 0:01:39]} 20... Bb4 {[%clk 0:00:36.7]} 21.
Ncb5 {[%clk 0:01:11.6]} 21... a5 {[%clk 0:00:21.5]} 22. Nc2 {[%clk 0:00:53.1]}
22... Bc5 {[%clk 0:00:20.9]} 23. Qf3 {[%clk 0:00:39.1]} 23... Qf6 {[%clk
0:00:20.3]} 24. Bd3 {[%clk 0:00:35.4]} 24... g6 {[%clk 0:00:21.1]} 25. Re1
{[%clk 0:00:31.4]} 25... Kg7 {[%clk 0:00:22.2]} 26. Kf1 {[%clk 0:00:31.7]} 26...
h5 {[%clk 0:00:18.7]} 27. h4 {[%clk 0:00:32.3]} 27... Rxe1+ {[%clk 0:00:14.3]}
28. Rxe1 {[%clk 0:00:34.2]} 28... Nxa4 {[%clk 0:00:14.6]} 29. Qf4 {[%clk
0:00:22.4]} 29... Nc3 {[%clk 0:00:12]} 30. Nbd4 {[%clk 0:00:17.6]} 30... Qxd4
{[%clk 0:00:11.7]} 31. Nxd4 {[%clk 0:00:19.5]} 1-0

[Event "*** Titled Tuesday Blitz"]
[Site "Chess.com"]
[Date "2019.01.01"]
[Round "5"]
[White "ElenaPershina"]
[Black "ChessChronicles123"]
[Result "1-0"]
[WhiteElo "1917"]
[BlackElo "1805"]
[TimeControl "180+2"]
[EndTime "14:09:56 PST"]
[Termination "ElenaPershina won on time"]

1. e4 {[%clk 0:03:01.7]} 1... c5 {[%clk 0:03:01]} 2. Nc3 {[%clk 0:03:01.1]} 2...
d6 {[%clk 0:03:00.6]} 3. g3 {[%clk 0:03:00.8]} 3... Nf6 {[%clk 0:03:01.9]} 4.
Bg2 {[%clk 0:03:02]} 4... g6 {[%clk 0:03:02.9]} 5. Nge2 {[%clk 0:02:59.7]} 5...
Bg7 {[%clk 0:03:04.3]} 6. O-O {[%clk 0:03:00.6]} 6... Nc6 {[%clk 0:03:05.8]} 7.
d3 {[%clk 0:03:00.9]} 7... e5 {[%clk 0:03:00.9]} 8. Be3 {[%clk 0:03:01.4]} 8...
Be6 {[%clk 0:03:01.6]} 9. h3 {[%clk 0:03:02]} 9... Qd7 {[%clk 0:03:01.3]} 10.
Kh2 {[%clk 0:03:02.8]} 10... O-O {[%clk 0:02:52.4]} 11. a3 {[%clk 0:03:00.9]}
11... Nh5 {[%clk 0:02:53.2]} 12. Qd2 {[%clk 0:02:57.7]} 12... f5 {[%clk
0:02:52.9]} 13. Bh6 {[%clk 0:02:57.4]} 13... f4 {[%clk 0:02:47]} 14. Bxg7 {[%clk
0:02:49.8]} 14... Kxg7 {[%clk 0:02:39.1]} 15. Ng1 {[%clk 0:02:50.1]} 15... Nd4
{[%clk 0:02:30.6]} 16. Rfe1 {[%clk 0:02:30.2]} 16... f3 {[%clk 0:02:30.5]} 17.
Bf1 {[%clk 0:02:30.9]} 17... Rf7 {[%clk 0:01:56.1]} 18. Nd5 {[%clk 0:02:28.3]}
18... Raf8 {[%clk 0:01:54.2]} 19. b4 {[%clk 0:02:22]} 19... Nf6 {[%clk
0:01:18.4]} 20. Nxf6 {[%clk 0:02:20.8]} 20... Rxf6 {[%clk 0:01:19.6]} 21. Rab1
{[%clk 0:02:21.6]} 21... b6 {[%clk 0:01:20]} 22. bxc5 {[%clk 0:02:20.9]} 22...
dxc5 {[%clk 0:01:20.9]} 23. c3 {[%clk 0:02:19.8]} 23... Nc6 {[%clk 0:01:18.8]}
24. Qe3 {[%clk 0:02:20.1]} 24... Nd8 {[%clk 0:01:12.6]} 25. Red1 {[%clk
0:02:17.1]} 25... Nf7 {[%clk 0:01:00.8]} 26. d4 {[%clk 0:02:17.1]} 26... cxd4
{[%clk 0:00:51.5]} 27. cxd4 {[%clk 0:02:17.8]} 27... exd4 {[%clk 0:00:43.1]} 28.
Rxd4 {[%clk 0:02:17.4]} 28... Qc8 {[%clk 0:00:37.8]} 29. Rc1 {[%clk 0:02:15.5]}
29... Qb7 {[%clk 0:00:34.1]} 30. Nxf3 {[%clk 0:01:53.4]} 30... Ne5 {[%clk
0:00:21.2]} 31. Nxe5 {[%clk 0:01:48.1]} 31... Rxf2+ {[%clk 0:00:21]} 32. Kg1
{[%clk 0:01:49.7]} 32... Qb8 {[%clk 0:00:10.1]} 33. Qg5 {[%clk 0:01:25.1]} 33...
h6 {[%clk 0:00:08.7]} 34. Qe7+ {[%clk 0:01:24.1]} 34... R8f7 {[%clk 0:00:08.9]}
35. Qxe6 {[%clk 0:01:23.5]} 35... R2f6 {[%clk 0:00:04.1]} 36. Qd5 {[%clk
0:01:17.4]} 36... Rf2 {[%clk 0:00:03.3]} 37. Bc4 {[%clk 0:01:09.3]} 37... R7f3
{[%clk 0:00:03.5]} 38. Rd3 {[%clk 0:01:04.8]} 1-0